bitfinex-derivatives/quotes_SOLF0:USTF0_20240926
["timestamp","ask_amount","ask_price","bid_price","bid_amount"]
[1727353834266,48.24,153.71,153.56,78.14]
[1727353834461,1.2946,153.7,153.56,80.7459]
[1727353834668,4.51593229,153.7,153.56,80.7459]
[1727353834974,3.2558,153.58,153.56,80.7459]
[1727353835164,48.24,153.68,153.56,80.7459]
[1727353835361,1.2946,153.7,153.56,80.7459]
[1727353836568,1.2946,153.7,153.59,3.2555]
[1727353836769,1.2946,153.7,153.56,80.7459]
[1727353836972,48.24,153.68,153.56,80.7459]
[1727353837271,1.3616,153.67,153.56,80.7459]
[1727353837571,2.6681,153.67,153.56,80.7459]
[1727353838165,3.2554,153.6,153.56,80.7459]
[1727353838470,2.6681,153.67,153.56,80.7459]
[1727353840269,2.6681,153.67,153.56,78.14]
[1727353840476,3.256,153.57,153.56,78.14]
[1727353840673,48.24,153.64,153.5,1.3648]
[1727353840864,3.2574,153.5,153.46,78.14]
[1727353841070,3.32356464,153.57,153.46,81.3982]
[1727353841265,48.24,153.61,153.46,78.14]
[1727353841266,1.2698,153.6,153.46,78.14]
[1727353841570,4.56729491,153.6,153.46,78.14]
[1727353841772,1.2969,153.63,153.48,48.24]
[1727353841976,1.2969,153.63,153.49,1.372]
[1727353842171,1.3059,153.62,153.5,3.2574]
[1727353842373,1.3059,153.62,153.49,1.372]
[1727353844883,3.256,153.57,153.49,1.372]
[1727353845379,3.2557,153.58,153.51,3.2572]
[1727353845978,3.2555,153.59,153.49,1.372]
[1727353846685,3.2558,153.58,153.52,3.257]
[1727353846978,1.3059,153.62,153.49,1.372]
[1727353847778,1.3059,153.62,153.51,3.257]
[1727353847976,1.3059,153.62,153.49,1.372]
[1727353849078,3.2559,153.58,153.49,1.372]
[1727353849277,1.3059,153.62,153.49,1.372]
[1727353850275,3.257,153.53,153.49,1.372]
[1727353850476,48.24,153.61,153.47,1.3867]
[1727353850676,48.24,153.61,153.46,78.14]
[1727353850883,1.3814,153.6,153.46,78.14]
[1727353851077,48.24,153.58,153.46,78.14]
[1727353851379,1.3814,153.6,153.46,78.14]
[1727353851380,3.2576,153.5,153.46,78.14]
[1727353851879,3.17831428,153.55,153.46,78.14]
[1727353851880,3.2579,153.48,153.46,78.14]
[1727353852079,2.7476,153.54,153.46,78.14]
[1727353852277,1.3814,153.53,153.42,1.2878]
[1727353852478,3.2579,153.48,153.44,3.2587]
[1727353852683,1.3814,153.53,153.44,3.2587]
[1727353852881,1.3814,153.53,153.42,1.2878]
[1727353853278,1.3814,153.53,153.45,3.2584]
[1727353853279,3.2576,153.5,153.45,3.2584]
[1727353853884,3.2577,153.49,153.45,3.2584]
[1727353854085,3.2577,153.49,153.44,3.2587]
[1727353854286,1.3814,153.53,153.39,78.18]
[1727353854581,1.3814,153.53,153.41,3.2592]
[1727353854783,1.3814,153.53,153.39,78.18]
[1727353855478,1.3814,153.53,153.4,48.24]
[1727353855876,2.7476,153.54,153.4,48.24]
[1727353856276,2.7476,153.54,153.46,3.2583]
[1727353856480,2.7476,153.54,153.4,48.24]
[1727353857083,2.7476,153.54,153.39,78.18]
[1727353857482,2.7476,153.54,153.43,3.2589]
[1727353858086,2.7476,153.54,153.42,3.2591]
[1727353858783,3.2582,153.47,153.42,3.2591]
[1727353858983,2.7476,153.54,153.39,78.18]
[1727353859180,3.2582,153.47,153.39,78.18]
[1727353859385,2.7476,153.54,153.39,78.18]
[1727353860087,3.2578,153.49,153.44,3.2586]
[1727353860289,2.7476,153.54,153.44,3.2586]
[1727353860476,3.258,153.48,153.44,3.2586]
[1727353860677,2.7476,153.54,153.39,78.18]
[1727353860980,3.2323764,153.57,153.4,48.24]
[1727353861283,3.26237223,153.56,153.45,3.2585]
[1727353861487,3.9503,153.58,153.45,3.2585]
[1727353861792,3.9503,153.58,153.4,48.24]
[1727353861793,3.9503,153.58,153.43,3.2587]
[1727353861986,3.9503,153.58,153.4,48.24]
[1727353862280,3.2575,153.5,153.4,48.24]
[1727353862481,3.2575,153.5,153.44,3.2586]
[1727353862681,3.9503,153.58,153.41,3.32203784]
[1727353862980,3.9503,153.58,153.44,48.24]
[1727353862981,2.6738,153.58,153.44,48.24]
[1727353863186,1.3198,153.58,153.45,3.9548]
[1727353863388,3.2566,153.55,153.45,3.9548]
[1727353863579,2.7091,153.63,153.45,3.9548]
[1727353863776,1.2902,153.62,153.45,3.9548]
[1727353863991,1.2902,153.62,153.5,3.2574]
[1727353863992,3.2563,153.56,153.5,3.2574]
[1727353864190,1.2902,153.62,153.45,3.9548]
[1727353864486,48.24,153.6,153.46,3.2581]
[1727353864689,48.24,153.6,153.45,3.9548]
[1727353865679,3.2572,153.51,153.46,3.2581]
[1727353865990,3.32312104,153.56,153.46,3.2581]
[1727353866292,48.24,153.6,153.45,3.9548]
[1727353867191,3.2565,153.55,153.45,3.9548]
[1727353867388,1.2902,153.62,153.46,48.24]
[1727353867694,3.2564,153.55,153.46,48.24]
[1727353867888,1.2902,153.62,153.46,48.24]
[1727353868388,1.2902,153.62,153.45,3.9548]
[1727353868696,1.2902,153.62,153.48,3.2579]
[1727353869386,1.2902,153.62,153.45,3.9548]
[1727353869588,48.24,153.61,153.45,3.9548]
[1727353869890,12.81715774,153.6,153.47,3.258]
[1727353870196,12.81715774,153.6,153.45,3.9548]
[1727353870588,12.81715774,153.6,153.48,3.2578]
[1727353870789,12.81715774,153.6,153.45,3.9548]
[1727353870987,48.24,153.61,153.51,3.2572]
[1727353871292,1.2902,153.62,153.47,78.2]
[1727353871491,3.2562,153.56,153.51,3.2571]
[1727353871681,1.2902,153.62,153.47,78.2]
[1727353872085,3.2555,153.59,153.54,3.2566]
[1727353872385,1.2902,153.62,153.47,78.2]
[1727353872590,3.2561,153.57,153.52,3.2569]
[1727353872888,3.2561,153.57,153.47,78.2]
[1727353873190,1.2902,153.62,153.51,3.2572]
[1727353873384,1.2902,153.62,153.47,78.2]
[1727353873893,3.2558,153.58,153.53,3.2566]
[1727353874481,1.2902,153.62,153.54,3.2566]
[1727353874690,1.2902,153.62,153.47,78.2]
[1727353874992,3.30466409,153.65,153.5,48.24]
[1727353874993,3.2554,153.6,153.5,48.24]
[1727353875289,3.30466409,153.65,153.55,3.2562]
[1727353875491,1.3439,153.66,153.47,78.2]
[1727353875793,1.3439,153.66,153.53,3.2568]
[1727353875994,3.2557,153.59,153.49,78.2]
[1727353876193,3.2557,153.59,153.54,3.2564]
[1727353876596,3.2557,153.59,153.49,78.2]
[1727353876894,3.2554,153.6,153.56,3.2562]
[1727353877290,3.2554,153.6,153.49,78.2]
[1727353877291,1.3439,153.66,153.54,48.24]
[1727353877496,4.56362764,153.66,153.55,4.0037]
[1727353877995,1.2709,153.67,153.55,4.0037]
[1727353878196,12.82877739,153.69,153.55,4.0037]
[1727353878496,51.55455011,153.69,153.55,4.0037]
[1727353878686,48.24,153.69,153.55,4.0037]
[1727353878888,12.8298653,153.68,153.55,2.6099]
[1727353879095,3.2557,153.59,153.55,4.5333]
[1727353879493,1.3772,153.67,153.55,1.2771]
[1727353879698,3.2562,153.56,153.55,1.2771]
[1727353879999,1.3772,153.67,153.55,1.2771]
[1727353880185,3.2557,153.59,153.55,1.2771]
[1727353880391,1.3772,153.67,153.55,1.2771]
[1727353881094,3.2557,153.59,153.55,1.2771]
[1727353881698,3.2558,153.58,153.55,1.2771]
[1727353881889,1.3772,153.67,153.55,1.2771]
[1727353882285,3.2552,153.61,153.56,3.2561]
[1727353882590,1.3772,153.67,153.55,1.2771]
[1727353882791,3.2542,153.66,153.61,3.255]
[1727353882998,60.5787272,153.7,153.55,1.2771]
[1727353883493,60.5787272,153.7,153.58,48.24]
[1727353883688,60.5787272,153.7,153.59,2.6283]
[1727353884086,2.6736,153.75,153.59,2.6283]
[1727353884286,2.6736,153.75,153.59,5.8365356]
[1727353884897,1.3555,153.75,153.61,48.24]
[1727353885089,3.2531,153.71,153.66,3.2539]
[1727353885597,1.2927,153.76,153.62,79.5557]
[1727353885598,3.2532,153.7,153.62,79.5557]
[1727353886193,1.2927,153.76,153.62,79.5557]
[1727353886495,12.82524423,153.79,153.65,48.24]
[1727353886686,48.24,153.8,153.66,2.6463]
[1727353886887,12.80710669,153.79,153.66,2.6463]
[1727353887188,17.40910132,153.79,153.66,2.6463]
[1727353887392,17.40910132,153.79,153.67,3.2537]
[1727353887588,48.24,153.76,153.62,1.3957]
[1727353887794,3.2547,153.63,153.62,1.3957]
[1727353888090,48.24,153.72,153.62,1.3957]
[1727353888091,3.23772626,153.69,153.62,1.3957]
[1727353888291,3.23772626,153.69,153.57,78.14]
[1727353888593,16.8088685,153.71,153.57,78.14]
[1727353888988,16.8088685,153.71,153.59,3.2555]
[1727353888989,20.10975403,153.71,153.59,3.2555]
[1727353889596,16.8088685,153.71,153.57,78.14]
[1727353889897,1.3818,153.71,153.57,78.14]
[1727353890311,3.254,153.67,153.57,78.14]
[1727353890493,1.3818,153.71,153.57,78.14]
[1727353890894,15.53931271,153.76,153.58,51.53957008]
[1727353891198,3.2535,153.69,153.65,3.2542]
[1727353891802,3.2537,153.68,153.64,3.2544]
[1727353891992,3.2537,153.68,153.58,48.24]
[1727353892198,4.0296,153.76,153.58,48.24]
[1727353892902,3.2536,153.69,153.58,48.24]
[1727353893203,4.0296,153.76,153.58,48.24]
[1727353893800,2.6621,153.76,153.61,48.24]
[1727353893996,48.24,153.81,153.62,1.3711]
[1727353894299,2.7052,153.82,153.65,48.24]
[1727353894300,7.40602603,153.82,153.65,48.24]
[1727353894501,7.40602603,153.82,153.66,1.3758]
[1727353894704,6.08502603,153.82,153.67,78.14]
[1727353896306,48.24,153.81,153.67,78.14]
[1727353896702,48.24,153.77,153.67,78.14]
[1727353896998,1.3007,153.8,153.67,78.14]
[1727353897203,1.3007,153.8,153.69,3.2534]
[1727353897403,1.3007,153.8,153.67,78.14]
[1727353897600,3.2524,153.74,153.67,78.14]
[1727353897902,6.08502603,153.82,153.67,78.14]
[1727353898206,3.2519,153.77,153.73,3.2524]
[1727353899309,3.252,153.76,153.73,3.2524]
[1727353899600,2.7811,153.82,153.73,3.2524]
[1727353900394,2.7811,153.82,153.74,3.2523]
[1727353900599,60.52213949,153.86,153.74,3.2523]
[1727353900909,60.52213949,153.86,153.75,1.3167]
[1727353901303,63.78344765,153.86,153.75,1.3167]
[1727353903405,63.78344765,153.86,153.71,2.6526]
[1727353903406,3.2522,153.75,153.72,3.2526]
[1727353904005,3.2518,153.77,153.74,3.2522]
[1727353904313,54.7401,153.85,153.71,3.9901]
[1727353905213,54.7401,153.85,153.72,3.2527]
[1727353905410,54.7401,153.85,153.71,3.9901]
[1727353906005,54.7401,153.85,153.73,3.2524]
[1727353906006,3.2521,153.76,153.73,3.2524]
[1727353906505,3.2518,153.77,153.73,3.2524]
[1727353906709,54.7401,153.85,153.71,3.9901]
[1727353907407,48.24,153.85,153.71,3.9901]
[1727353907613,3.2527,153.73,153.71,1.3375]
[1727353908004,3.31934791,153.78,153.69,78.08]
[1727353908306,48.24,153.78,153.69,78.08]
[1727353908613,2.7459,153.77,153.69,78.08]
[1727353909115,3.2532,153.7,153.69,78.08]
[1727353909411,2.7459,153.77,153.64,1.2912]
[1727353909613,2.7459,153.77,153.6,1.2912]
[1727353909614,48.24,153.74,153.6,1.2912]
[1727353909809,1.3823,153.73,153.6,1.2912]
[1727353910012,3.2542,153.66,153.6,1.2912]
[1727353910514,3.2542,153.66,153.62,3.2548]
[1727353910909,3.2543,153.65,153.62,3.2548]
[1727353911208,48.24,153.71,153.6,1.2912]
[1727353911415,2.6166,153.7,153.59,78.08]
[1727353911715,5.87906972,153.7,153.59,78.08]
[1727353911905,3.2553,153.6,153.59,78.08]
[1727353913015,1.2806,153.63,153.53,4.6258]
[1727353913317,50.785,153.63,153.51,3.2572]
[1727353913516,1.336,153.62,153.51,3.2572]
[1727353913722,1.336,153.62,153.5,78.1]
[1727353914610,48.24,153.6,153.5,78.1]
[1727353915812,3.2572,153.51,153.5,78.1]
[1727353916417,3.2576,153.5,153.45,4.6079]
[1727353916917,3.19361147,153.52,153.44,3.2585]
[1727353917106,1.2834,153.53,153.41,80.6762]
[1727353917311,1.2842,153.51,153.42,3.2591]
[1727353917522,1.2842,153.51,153.41,78.12]
[1727353918021,1.2842,153.51,153.34,2.6807]
[1727353918022,48.24,153.49,153.34,2.6807]
[1727353918216,48.24,153.49,153.34,4.0573]
[1727353918521,48.24,153.49,153.36,3.2603]
[1727353918711,3.2595,153.41,153.36,3.2603]
[1727353918922,48.24,153.49,153.35,3.2606]
[1727353919115,48.24,153.49,153.32,78.14]
[1727353919322,3.2601,153.38,153.33,3.261]
[1727353919516,48.24,153.49,153.33,3.261]
[1727353919711,1.2842,153.51,153.32,78.14]
[1727353919712,48.24,153.45,153.32,78.14]
[1727353920015,48.24,153.42,153.32,78.14]
[1727353920212,2.6787,153.41,153.23,78.18]
[1727353920418,3.2622,153.28,153.23,78.18]
[1727353920618,48.24,153.35,153.23,78.18]
[1727353920813,48.24,153.35,153.15,48.24]
[1727353921017,48.24,153.35,153.14,80.7887]
[1727353921018,48.24,153.31,153.18,3.2642]
[1727353921218,3.974,153.3,153.14,79.51]
[1727353921414,3.974,153.3,153.14,78.18]
[1727353921817,3.974,153.3,153.15,48.24]
[1727353922228,67.20459041,153.45,153.18,48.24]
[1727353922229,3.2214239,153.32,153.18,48.24]
[1727353922521,3.2622,153.28,153.18,48.24]
[1727353922722,3.23938602,153.32,153.18,48.24]
[1727353922914,48.24,153.38,153.18,48.24]
[1727353923115,48.24,153.34,153.2,3.2638]
[1727353923323,51.55156107,153.34,153.14,126.42]
[1727353924326,51.55156107,153.34,153.15,1.19980661]
[1727353924625,51.55156107,153.34,153.14,126.42]
[1727353924815,51.55156107,153.34,153.2,3.2636]
[1727353925721,51.55156107,153.34,153.14,126.42]
[1727353925722,51.55156107,153.34,153.19,3.264]
[1727353926018,48.24,153.31,153.14,78.18]
[1727353926214,4.0334,153.3,153.16,3.2645]
[1727353926419,7.27334252,153.3,153.16,3.2645]
[1727353927624,48.24,153.27,153.14,81.4451]
[1727353927923,7.27334252,153.3,153.03,126.5]
[1727353927924,48.24,153.23,153.03,126.5]
[1727353928227,48.24,153.23,153.04,1.20050114]
[1727353928526,48.24,153.23,153.05,1.20050114]
[1727353928724,48.24,153.23,153.04,1.3032]
[1727353929030,48.24,153.2,153.08,3.2663]
[1727353929328,3.9454,153.19,153.08,3.2663]
[1727353930217,3.9454,153.19,153.05,1.20061028]
[1727353930624,48.24,153.16,153.05,1.20061028]
[1727353930828,48.24,153.16,153.01,3.2677]
[1727353931036,3.9454,153.19,153.0,48.24]
[1727353931428,3.9454,153.19,153.04,48.24]
[1727353932332,52.1854,153.19,153.0,48.24]
[1727353932836,52.1854,153.19,153.05,3.267]
[1727353933330,3.9454,153.19,153.0,48.24]
[1727353933931,3.9454,153.19,153.07,3.2664]
[1727353934234,3.26308566,153.2,153.04,48.24]
[1727353934433,67.83,153.26,153.08,3.2662]
[1727353934434,1.2851,153.19,153.08,3.2662]
[1727353935238,1.2851,153.19,153.04,48.24]
[1727353935432,1.2851,153.19,153.0,48.24]
[1727353935636,1.2851,153.19,152.99,78.34]
[1727353935637,48.24,153.15,152.99,78.34]
[1727353936029,49.5166,153.18,152.99,78.34]
[1727353936332,49.5166,153.18,153.03,3.2673]
[1727353936928,49.5166,153.18,153.01,3.2677]
[1727353936929,48.24,153.15,153.01,3.2677]
[1727353937129,48.24,153.15,152.99,78.34]
[1727353937931,48.24,153.15,153.02,3.2676]
[1727353938447,1.2766,153.18,153.0,48.24]
[1727353939233,1.2766,153.18,152.99,78.34]
[1727353939429,48.24,153.15,152.96,1.3875]
[1727353939938,1.2766,153.18,152.97,49.44135606]
[1727353940130,1.2766,153.18,152.97,48.24]
[1727353940330,1.2766,153.18,152.98,1.20124206]
[1727353940530,1.2766,153.18,152.97,48.24]
[1727353940829,1.2766,153.18,152.98,1.20124089]
[1727353941032,1.2766,153.18,152.97,48.24]
[1727353941235,1.2766,153.18,152.98,1.20123875]
[1727353941537,48.24,153.15,152.96,1.3875]
[1727353941936,48.24,153.11,152.96,1.3875]
[1727353942128,1.2863,153.1,152.98,3.2685]
[1727353942333,2.674,153.1,152.98,3.2685]
[1727353942731,2.674,153.1,152.96,1.3875]
[1727353943339,2.674,153.1,152.98,3.2683]
[1727353943735,2.674,153.1,152.99,3.2681]
[1727353944236,2.674,153.1,152.91,150.23760595]
[1727353944431,48.24,153.07,152.94,2.5768]
[1727353944831,48.24,153.07,152.94,5.8461]
[1727353945043,48.24,153.07,152.94,1.2783]
[1727353945336,2.674,153.1,152.94,1.2783]
[1727353945337,3.2691,152.96,152.94,1.2783]
[1727353945534,3.2691,152.96,152.91,78.38]
[1727353945734,48.24,153.04,152.91,78.38]
[1727353945933,1.387,153.06,152.91,78.38]
[1727353946134,1.387,153.06,152.94,3.2694]
[1727353946329,1.387,153.06,152.88,1.2783]
[1727353946330,48.24,153.0,152.88,1.2783]
[1727353946627,3.32548403,153.0,152.88,1.2783]
[1727353946932,48.24,153.04,152.88,1.2783]
[1727353947130,3.2698,152.92,152.88,1.2783]
[1727353947336,48.24,152.97,152.82,1.2783]
[1727353947529,2.592,152.99,152.82,2.6005]
[1727353947729,5.90056843,152.99,152.82,2.6005]
[1727353948034,48.24,153.04,152.84,48.24]
[1727353948229,48.24,153.04,152.82,2.6005]
[1727353948230,3.2685,152.98,152.88,48.24]
[1727353948435,2.592,153.05,152.88,48.24]
[1727353949036,2.592,153.05,152.84,48.24]
[1727353949237,50.832,153.05,152.85,1.20211471]
[1727353949840,50.832,153.05,152.84,48.24]
[1727353950037,3.2694,152.94,152.84,48.24]
[1727353950340,50.832,153.05,152.84,48.24]
[1727353950738,50.832,153.05,152.91,3.27]
[1727353951051,50.832,153.05,152.92,2.741]
[1727353951251,2.592,153.05,152.92,2.741]
[1727353952041,50.832,153.05,152.92,2.741]
[1727353952544,50.832,153.05,152.92,1.3539]
[1727353952939,3.2691,152.96,152.92,1.3539]
[1727353953143,50.832,153.05,152.92,1.3539]
[1727353953144,3.22482025,152.98,152.92,1.3539]
[1727353953437,50.832,153.05,152.92,1.3539]
[1727353954239,3.2695,152.94,152.92,1.3539]
[1727353954450,50.832,153.05,152.92,1.3539]
[1727353954451,3.30497938,152.97,152.92,1.3539]
[1727353955041,48.24,153.02,152.89,78.46]
[1727353955344,48.24,152.98,152.86,1.395]
[1727353955545,2.6105,152.97,152.86,1.395]
[1727353955940,3.2706,152.89,152.86,1.395]
[1727353956142,2.6105,152.97,152.86,1.395]
[1727353956337,2.6105,152.97,152.71,78.48]
[1727353956338,48.24,152.95,152.71,78.48]
[1727353956547,48.24,152.95,152.81,3.272]
[1727353956939,48.24,152.95,152.78,2.7135]
[1727353957744,3.2705,152.89,152.83,3.2716]
[1727353957946,48.24,152.95,152.83,3.2716]
[1727353958244,1.3051,152.96,152.78,2.7135]
[1727353958245,48.24,152.9,152.78,2.7135]
[1727353958746,51.5374359,152.9,152.78,2.7135]
[1727353958946,1.3805,152.89,152.78,2.7135]
[1727353959742,3.2721,152.82,152.78,2.7135]
[1727353960043,19.59,152.94,152.78,2.7135]
[1727353960044,48.24,152.94,152.78,2.7135]
[1727353960357,1.3121,152.95,152.78,2.7135]
[1727353960656,1.3051,152.96,152.79,1.20282899]
[1727353960857,3.2698,152.93,152.88,3.2705]
[1727353961149,3.2698,152.93,152.8,1.20273848]
[1727353961345,1.3051,152.96,152.78,129.4535]
[1727353961546,1.3051,152.96,152.79,1.20280755]
[1727353961747,3.2707,152.88,152.83,3.2716]
[1727353962144,1.3051,152.96,152.83,3.2716]
[1727353962653,3.2706,152.89,152.84,3.2714]
[1727353963945,3.2708,152.88,152.83,3.2716]
[1727353964150,48.24,152.94,152.78,81.2135]
[1727353964440,2.5991,152.93,152.78,81.2135]
[1727353964646,48.24,152.9,152.78,81.2135]
[1727353965144,51.44806599,152.9,152.78,81.2135]
[1727353965446,51.44806599,152.9,152.78,2.7135]
[1727353966146,3.20806599,152.9,152.78,2.7135]
[1727353966349,3.2711,152.86,152.81,3.2721]
[1727353966548,3.2711,152.86,152.78,2.7135]
[1727353966549,48.24,152.91,152.78,2.7135]
[1727353966847,3.2713,152.85,152.8,3.2722]
[1727353967046,3.34697485,152.87,152.78,2.7135]
[1727353967351,3.2719,152.83,152.78,4.6195]
[1727353967550,3.28706128,152.84,152.78,4.6195]
[1727353967741,3.34304609,152.85,152.78,1.3468]
[1727353967940,3.2718,152.83,152.78,4.6195]
[1727353968840,3.2715,152.84,152.78,1.3468]
[1727353969651,48.24,152.91,152.8,3.2722]
[1727353969855,48.24,152.91,152.78,1.3468]
[1727353970045,3.2721,152.82,152.78,1.3468]
[1727353970845,3.2718,152.83,152.78,4.6195]
[1727353971454,48.24,152.91,152.78,1.3468]
[1727353971941,48.24,152.87,152.74,3.2736]
[1727353972146,1.3145,152.86,152.74,3.2736]
[1727353972340,1.3145,152.86,152.73,1.3654]
[1727353972549,48.24,152.83,152.73,1.3654]
[1727353972951,1.3023,152.85,152.73,1.3654]
[1727353973150,1.3145,152.86,152.73,1.3654]
[1727353973843,1.3145,152.86,152.77,3.2729]
[1727353974048,3.2721,152.82,152.77,3.2729]
[1727353974244,1.3145,152.86,152.8,3.2722]
[1727353974449,3.28017551,152.87,152.73,1.3654]
[1727353974645,49.5545,152.91,152.73,1.3654]
[1727353974852,3.2715,152.85,152.73,1.3654]
[1727353975052,3.23367607,152.87,152.8,3.2722]
[1727353975246,3.2719,152.83,152.73,1.3654]
[1727353975552,49.5545,152.91,152.73,1.3654]
[1727353975553,3.32471019,152.85,152.73,1.3654]
[1727353975747,3.2723,152.81,152.73,1.3654]
[1727353976856,3.2526688,152.84,152.73,1.3654]
[1727353977049,6.5407,152.9,152.73,1.3654]
[1727353977354,3.2721,152.82,152.78,3.2727]
[1727353977549,3.34173816,152.86,152.73,1.3654]
[1727353977752,1.3145,152.91,152.73,1.3654]
[1727353978252,1.3145,152.91,152.74,7.75034322]
[1727353978451,1.3145,152.91,152.74,6.5472]
[1727353978954,1.3145,152.91,152.81,3.2721]
[1727353979153,1.3145,152.91,152.74,6.5472]
[1727353979344,1.3145,152.91,152.75,48.24]
[1727353979548,1.3568,152.92,152.76,6.5465]
[1727353979747,1.3568,152.92,152.77,1.2992]
[1727353979952,3.2709,152.87,152.83,3.2717]
[1727353980347,3.25356612,152.9,152.81,3.272]
[1727353980543,1.3568,152.92,152.77,1.2992]
[1727353981048,48.24,152.91,152.77,1.2992]
[1727353981453,3.2723,152.81,152.77,1.2992]
[1727353981756,1.3568,152.92,152.77,1.2992]
[1727353983452,1.3568,152.92,152.81,3.2721]
[1727353983651,1.3568,152.92,152.77,1.2992]
[1727353984055,3.2713,152.85,152.77,1.2992]
[1727353984262,3.21461306,152.87,152.77,1.2992]
[1727353984463,1.3568,152.92,152.77,1.2992]
[1727353984656,3.2716,152.84,152.77,1.2992]
[1727353984957,1.3568,152.92,152.77,1.2992]
[1727353985148,1.3568,152.92,152.78,48.24]
[1727353985453,1.3023,152.93,152.78,48.24]
[1727353985655,3.2701,152.91,152.86,3.2709]
[1727353985955,1.3832,152.94,152.78,48.24]
[1727353986167,2.6994,152.97,152.78,48.24]
[1727353986351,4.1014,152.97,152.78,48.24]
[1727353986663,3.27,152.92,152.88,3.2705]
[1727353987257,3.2702,152.9,152.78,48.24]
[1727353987459,4.1014,152.97,152.78,48.24]
[1727353987762,3.2698,152.92,152.78,48.24]
[1727353988061,1.405,152.97,152.82,48.24]
[1727353988262,3.30759667,152.98,152.83,1.3278]
[1727353988561,2.7646,153.01,152.83,1.3278]
[1727353988757,1.3302,152.97,152.84,1.332]
[1727353989063,1.3302,152.97,152.84,2.6303]
[1727353989465,4.52760047,152.97,152.84,2.6303]
[1727353989660,1.3302,152.97,152.84,2.6303]
[1727353989863,4.62917506,152.97,152.84,2.6303]
[1727353990165,48.24,152.94,152.84,2.6303]
[1727353990362,2.6564,152.93,152.8,78.54]
[1727353990863,48.24,152.9,152.8,78.54]
[1727353991053,1.288,152.89,152.8,78.54]
[1727353991252,4.51824641,152.89,152.76,1.3112]
[1727353991458,1.288,152.89,152.76,1.3112]
[1727353992160,4.50548252,152.89,152.76,1.3112]
[1727353992359,1.288,152.89,152.76,1.3112]
[1727353992754,3.2721,152.82,152.77,3.273]
[1727353993058,3.2721,152.82,152.76,1.3112]
[1727353993260,48.24,152.87,152.72,2.67]
[1727353993868,4.59548432,152.89,152.69,78.54]
[1727353993869,48.24,152.83,152.69,78.54]
[1727353994058,2.66,152.82,152.69,78.54]
[1727353994363,3.2731,152.77,152.71,3.2743]
[1727353994670,51.58992468,152.79,152.69,78.54]
[1727353994872,3.2735,152.75,152.69,81.8147]
[1727353995059,51.48382736,152.79,152.69,81.8147]
[1727353995260,3.24382736,152.79,152.69,78.54]
[1727353995456,48.24,152.9,152.71,48.24]
[1727353995657,1.3216,152.86,152.71,48.24]
[1727353995870,4.62764492,152.86,152.69,78.54]
[1727353996058,2.66,152.88,152.71,48.24]
[1727353996059,1.3119,152.88,152.71,48.24]
[1727353996262,4.62897157,152.88,152.71,48.24]
[1727353996554,1.3119,152.88,152.8,3.2722]
[1727353996754,4.52714458,152.88,152.71,48.24]
[1727353996967,1.3119,152.88,152.71,48.24]
[1727353997667,4.57527502,152.88,152.71,48.24]
[1727353998155,48.24,152.94,152.75,48.24]